Workbook

Sheet 참여업체현황
B1: 참여업체 현황
F2: 공고일 | G2: 2013-10-04
B3: 업 체 명 | C3: 주 소 | D3: 대표자 | E3: 지분율 (%) | F3: 면허사항
F4: 종합감리 전문회사 | G4: 토목감리 전문회사
B5: A사 | C5: 00시00동00번지 | D5: 홍길동 | E5: 0.4 | F5: o
B6: B사 | C6: 00시00동00번지 | D6: 홍삼둥 | E6: 0.3 | F6: o
B7: C사 | C7: 00시00동00번지 | D7: 홍사덩 | E7: 0.1 | F7: o
B8: D사 | C8: 00시00동00번지 | D8: 홍모셩 | E8: 0.1 | F8: o
B9: E사 | C9: 00시00동00번지 | D9: 홍둥성 | E9: 0.1 | F9: o
B11: ※ 작성유의사항
B12: 1. 빨강색으로 표시된 곳만 수정 입력하고 추가사항 있을시 "셀 복사 → 복사한 셀 삽입"을 통하여 기재하며, 계산식이 연동되었는지 확인한다.
B13: 2. 공고일에 맞도록 날짜 수정 기입한다
B14: 3. 5개 업체 컨소시엄 기준으로 작성한 산정표 이므로 만약 3개 업체 컨소시엄으로 참여시 필요없는 셀은 삭제한다(수식 오류 수정 필요)

Sheet 참여감리원 명단
B1: 참여감리원 명단(등급)
B3: 구분 | C3: 분야 (등급) | D3: 성명 | E3: 기술 자격명 | F3: 주민번호 | G3: 나이 | H3: 학력 | J3: 소속 | K3: 비고
G4: (만 00세) | H4: 최종학력 (학위) | I4: 졸업/ 취득일
B5: 책임 감리원 | C5: 토목분야 (수석감리사) | D5: 홍길일 | E5: 토목시공기술사 | F5: 000-000 | G5: 0 | H5: 석사 | I5: 00-00-00 | J5: 00엔지니어링
B6: 보조 감리원 | C6: 토목분야 (감리사) | D6: 홍길이 | E6: 토목시공기술사 | F6: 00-00 | G6: 0 | H6: 학사 | I6: 00-00-00 | J6: 00기술단
B7: 기술 지원 감리원 | C7: 토목분야 (수석감리사) | D7: 홍길삼 | E7: 도로및공항기술사 | F7: 00-00 | G7: 0 | H7: 학사 | I7: 00-00-00 | J7: 00기술단 | K7: 도로및공항
C8: 토목분야 (수석감리사) | D8: 홍길사 | E8: 토질및기초기술사 | F8: 00-00 | G8: 0 | H8: 학사 | I8: 00-00-00 | J8: 00엔지니어링 | K8: 토질및기초
C9: 토목분야 (수석감리사) | D9: 홍길오 | E9: 토목구조기술사 | F9: 00-00 | G9: 0 | H9: 학사 | I9: 00-00-00 | J9: 00감리단 | K9: 토목구조
C10: 토목분야 (수석감리사) | D10: 홍길육 | E10: 상하수도기술사 | F10: 00-00 | G10: 0 | H10: 학사 | I10: 00-00-00 | J10: 00엔지니어링 | K10: 상하수도

Sheet 자기평가서
B1: 자기 평가서
B3: 항목 | C3: 세부항목 | D3: 평가내용 | F3: 배점 | G3: 평점 | H3: 비고
B4: 가.참여 감리원 [50] | C4: (1)책임 감리원 [25] | D4: (가)등급 | E4: 300억,1년,수석감리사 | F4: 적.부 | G4: 적
D5: (나)해당분야경력 | E5: 해당분야100%, 그외60% | F5: 9 | G5: ='가.개인별 경력 및 실적목록'!F5 -> 9
D6: (다)직무분야실적 | E6: 설계 | F6: 3 | G6: ='가.개인별 경력 및 실적목록'!H5 -> 3
E7: 시공 등 | F7: 6 | G7: ='가.개인별 경력 및 실적목록'!J5 -> 6
D8: (라)교육훈련 | E8: 교육훈련 | F8: 0.5 | G8: ='가.교육 및 감리자격 현황'!I5 -> 0.5
E9: 기술자격 | F9: 0.5 | G9: ='가.교육 및 감리자격 현황'!I21 -> 0.5
D10: (마)면접(발표) | E10: 0점 표기 | F10: 6 | G10: 0
D11: 소계 | F11: =SUM(F4:F10) -> 25 | G11: =G5+G6+G7+G8+G9+G10 -> 19
C12: (2)보조 감리원 [25] | D12: (가)등급 | E12: 감리사 이상 | F12: 적.부
D13: (나)해당분야경력 | E13: 해당분야100%, 그외60% | F13: 9 | G13: ='가.개인별 경력 및 실적목록'!F6 -> 6.3
D14: (다)직무분야실적 | E14: 설계 | F14: 2 | G14: ='가.개인별 경력 및 실적목록'!H6 -> 2
E15: 시공 등 | F15: 3 | G15: ='가.개인별 경력 및 실적목록'!J6 -> 3.0
D16: (라)교육훈련 | E16: 교육훈련 | F16: 1 | G16: ='가.교육 및 감리자격 현황'!I7 -> 1
D17: 소계 | F17: =SUM(F12:F16) -> 15 | G17: =G13+G14+G15+G16 -> 12.3
C18: (3)기술 지원 감리원 [25] | D18: (가)등급 | E18: 수석감리사 : 3 감리사 이하 : 2 | F18: 3 | G18: ='가.교육 및 감리자격 현황'!I23 -> 3
D19: (나)해당분야경력 | E19: 해당분야100%, 그외60% | F19: 6 | G19: =('가.개인별 경력 및 실적목록'!F7+'가.개인별 경력 및 실적목록'!F8+'가.개인별 경력 및 실적목록'!F9+'가.개인별 경력 및 실적목록'!F10)/4 -> 4.35
D20: (라)교육훈련 | E20: 교육훈련 | F20: 0.5 | G20: ='가.교육 및 감리자격 현황'!I17 -> 0.5
E21: 기술자격(기술사) | F21: 0.5 | G21: ='가.교육 및 감리자격 현황'!I22 -> 0.5
D22: 소계 | F22: =SUM(F18:F21) -> 10 | G22: =G18+G19+G20+G21 -> 8.35
C23: 소계 | F23: =F11+F17+F22 -> 50 | G23: =G11+G17+G22 -> 39.65
B24: 나. 유사 용역 수행실적 [10] | C24: (1)감리 전문 회사 실적 | D24: 업체별 수행실적금액 합산하여 평가 (최근 3년간) | F24: 10 | G24: ='나.유사용역사업 수행실적'!J10 -> 6
B25: 다. 신용도 [15] | C25: (1)입찰 참가 제한 업무정지 | D25: 감리전문회사(0.2점 감점/월) 참여감리원(0.2점 감점/월) | F25: 7 | G25: =F25-다.신용도!G7 -> 6.4
C26: (2)부실 벌점 | D26: 감리전문회사 참여감리원 | F26: 5 | G26: =F26-다.신용도!G13 -> 2
C27: (3)재정 상태 건실도 | D27: 신용평가등급 (업체평점×지분율의 합) | F27: 3 | G27: =다.신용도!G17 -> 2.67
C28: 소계 | F28: =SUM(F25:F27) -> 15 | G28: =G25+G26+G27 -> 11.07
B29: 라. 기술 개발 및 투자 실적 [10] | C29: (1)개발 실적 | D29: 건설신기술, 특허, 실용신안 | F29: 3 | G29: ='라.기술개발 및 투자실적'!H9 -> 3
C30: (2)투자 실적 | D30: 3년간 기술개발투자실적/건설부문총매출액 | F30: 7 | G30: ='라.기술개발 및 투자실적'!N106 -> 6.4
C31: 소계 | F31: =SUM(F29:F30) -> 10 | G31: =G29+G30 -> 9.4
B32: 마. 업무 중첩도 [5] | C32: (1)상주 감리원 | D32: 책임감리원2, 보조감리원1 | F32: 3 | G32: =마.업무중첩도!F8 -> 3
C33: (2)기술 지원 감리원 | D33: 10개이상 중복배치시 0점 | F33: 2 | G33: =마.업무중첩도!F25 -> 2
C34: 소계 | F34: =SUM(F32:F33) -> 5 | G34: =G32+G33 -> 5
B35: 바. 교체 빈도 | C35: (1)감리 전문 회사 | D35: 1년간 현장배치된 감리원수 교체빈도율 | F35: 5 | G35: =바.교체빈도!J13 -> 4.5
C36: (2)참여 감리원 | D36: 0.25점/회 감점 | F36: 5 | G36: =바.교체빈도!H25 -> 4.45
C37: 소계 | F37: =SUM(F35:F36) -> 10 | G37: =G35+G36 -> 8.95
B38: 계 | F38: =F23+F24+F28+F31+F34+F37 -> 100 | G38: =G23+G24+G28+G31+G34+G37 -> 80.07
B40: 가감점 평가기준 | C40: 가점 | D40: 공사비 절감기여 감리원
C41: 감점 | D41: 부패행위 관련자
C42: 계

Sheet 가.개인별 경력 및 실적목록
B1: 참여감리원 개인별 경력 및 실적목록
B3: 구분 | C3: 분야 (등급) | D3: 성명 | E3: 해당분야 경력(년) | G3: 직무분야실적(년)
E4: 보조감리원은(월) | F4: 점수 | G4: 설계 등(년) | H4: 점수 | I4: 시공 등(년) | J4: 점수
B5: ='참여감리원 명단'!B5 -> 책임 감리원 | D5: ='참여감리원 명단'!D5 -> 홍길일 | E5: ='가.해당분야 경력'!E17/365 -> 22.37589041 | F5: =IF(E5>=13,"9",IF(E5>=11,"8.1", IF(E5>=9,"7.2", IF(E5>=7,"6.3", IF(E5<7,"5.4"))))) -> 9 | G5: =('가.직무분야 실적'!D7+'가.직무분야 실적'!D19)/365 -> 66.04931507 | H5: =IF(G5>=15,"3",IF(G5>=13,"2.7", IF(G5>=11,"2.4", IF(G5>=9,"2.1", IF(G5<9,"1.8"))))) -> 3 | I5: =('가.직무분야 실적'!D19)/365 -> 33.02465753 | J5: =IF(I5>=7,"6",IF(I5>=5,"5.4", IF(I5>=3,"4.8", IF(I5>=2,"4.2", IF(I5<2,"6.3"))))) -> 6
B6: ='참여감리원 명단'!B6 -> 보조 감리원 | D6: ='참여감리원 명단'!D6 -> 홍길이 | E6: ='가.해당분야 경력'!E36/30.5 -> 32.05901639 | F6: =IF(E6>=48,"9",IF(E6>=42,"8.1", IF(E6>=36,"7.2", IF(E6>=30,"6.3", IF(E6<30,"5.4"))))) -> 6.3 | G6: =('가.직무분야 실적'!D37+'가.직무분야 실적'!D49)/365 -> 66.04931507 | H6: =IF(G6>=10,"2",IF(G6>=8,"1.8", IF(G6>=6,"1.6", IF(G6>=4,"1.4", IF(G6<4,"1.2"))))) -> 2 | I6: =('가.직무분야 실적'!D49)/365 -> 33.02465753 | J6: =IF(I6>=4,"3.0",IF(I6>=3,"2.7", IF(I6>=2,"2.4",IF(I6<2,"2.1")))) -> 3.0
B7: ='참여감리원 명단'!B7:B10 -> 기술 지원 감리원 | C7: 도로및 공항 | D7: ='참여감리원 명단'!D7 -> 홍길삼 | E7: ='가.해당분야 경력'!E57/365 -> 12.48328767 | F7: =IF(E7>=13,"6",IF(E7>=11,"5.4", IF(E7>=9,"4.8", IF(E7>=7,"4.2", IF(E7<7,"3.6"))))) -> 5.4 | G7: - | H7: - | I7: - | J7: -
C8: 토질 및 기초 | D8: ='참여감리원 명단'!D8 -> 홍길사 | E8: ='가.해당분야 경력'!E78/365 -> 10.01808219 | F8: =IF(E8>=13,"6",IF(E8>=11,"5.4", IF(E8>=9,"4.8", IF(E8>=7,"4.2", IF(E8<7,"3.6"))))) -> 4.8 | G8: - | H8: - | I8: - | J8: -
C9: 토목구조 | D9: ='참여감리원 명단'!D9 -> 홍길오 | E9: ='가.해당분야 경력'!E99/365 -> 5.324931507 | F9: =IF(E9>=13,"6",IF(E9>=11,"5.4", IF(E9>=9,"4.8", IF(E9>=7,"4.2", IF(E9<7,"3.6"))))) -> 3.6 | G9: - | H9: - | I9: - | J9: -
C10: 상하수도 | D10: ='참여감리원 명단'!D10 -> 홍길육 | E10: ='가.해당분야 경력'!E120/365 -> 4.801643836 | F10: =IF(E10>=13,"6",IF(E10>=11,"5.4", IF(E10>=9,"4.8", IF(E10>=7,"4.2", IF(E10<7,"3.6"))))) -> 3.6 | G10: - | H10: - | I10: - | J10: -
C11: 계 | F11: =ROUND((F7+F8+F9+F10)/4,2) -> 4.35

Sheet 가.해당분야 경력
B1: 책임감리원 등급판정
B3: ○ | C3: 책임감리원 | E3: ='참여감리원 명단'!D5 -> 홍길일
B4: 경력사항
B5: 사업명 | D5: 공사개요(면적, 금액) | G5: 근무형태 및 직책 | H5: 참여당시 | K5: 발주처
D6: 면적,금액등 | E6: (참여기간) | F6: (일수) | H6: 소속회사 | I6: 등급 | J6: 직위
B7: 00부지조성공사 | D7: 면적 400,000 | E7: 94.10.10~09.10.09 | F7: 5479 | G7: 상주/보조 | H7: 00엔지니어링 | I7: 수석감리사 | J7: 과장 | K7: 00시
B11: 참여감리원 개인별 해당분야 경력
B13: ○ | C13: 책임감리원 | E13: ='참여감리원 명단'!D5 -> 홍길일
B14: 경력사항
B15: 사업명 | D15: 공사개요(면적, 금액) | G15: 근무형태 및 직책 | H15: 참여당시 | K15: 발주처
D16: 면적,금액등 | E16: (참여기간) | F16: (일수) | H16: 소속회사 | I16: 등급 | J16: 직위
B17: 합계 | C17: 총00건 | E17: =E18+E22 -> 8167.2
B18: 100%계 | E18: =SUM(F19:F21) -> 6597
B19: 00부지조성공사 | D19: 면적 : 20,000,000㎡ | E19: 94.10.10~09.10.09 | F19: 1540 | G19: 상주/보조 | H19: 00엔지니어링 | I19: 감리사보 | J19: 과장 | K19: 00시
B20: 00부지조성공사 | D20: 면적 : 1,000,000㎡ | E20: 09.10.10~12.10.09 | F20: 2642 | G20: 상주/보조 | H20: 00엔지니어링 | I20: 감리사보 | J20: 과장 | K20: 00시
B21: 00부지조성공사 | D21: 면적 : 1,000,000㎡ | E21: 09.10.10~12.10.09 | F21: 2415 | G21: 상주/보조 | H21: 00엔지니어링 | I21: 감리사보 | J21: 과장 | K21: 00시
B22: 60%계 | E22: =SUM(F23:F25)*0.6 -> 1570.2
B23: 00도로확장공사 | D23: 2-4차로확장, 1.4km | E23: 09.10.10~12.10.09 | F23: 1530 | G23: 상주/보조 | H23: 00엔지니어링 | I23: 감리사보 | J23: 과장 | K23: 00시
B24: 00관거정비공사 | D24: D100, 5.6km | E24: 12.10.10~13.01.03 | F24: 87 | G24: 상주/책임 | H24: 00엔지니어링 | I24: 감리사보 | J24: 과장 | K24: 00시
B25: 00도로확장공사 | D25: 2-4차로확장, 1.4km | E25: 09.10.10~12.10.09 | F25: 1000 | G25: 상주/보조 | H25: 00엔지니어링 | I25: 감리사보 | J25: 과장 | K25: 00시
B32: ○ | C32: ='참여감리원 명단'!B6 -> 보조 감리원 | E32: ='참여감리원 명단'!D6 -> 홍길이
B33: 경력사항
B34: 사업명 | D34: 공사개요(면적, 금액) | G34: 근무형태 및 직책 | H34: 참여당시 | K34: 발주처
E35: (참여기간) | F35: (일수) | H35: 소속회사 | I35: 등급 | J35: 직위
B36: 합계 | C36: 총00건 | E36: =E37+E41 -> 977.8
B37: 100%계 | E37: =SUM(F38:F40) -> 598
B38: 00부지조성공사 | D38: 면적 : 20,000,000㎡ | E38: 94.10.10~09.10.09 | F38: 124 | G38: 상주/보조 | H38: 00엔지니어링 | I38: 감리사보 | J38: 과장 | K38: 00시
B39: 00부지조성공사 | D39: 면적 : 1,000,000㎡ | E39: 09.10.10~12.10.09 | F39: 221 | G39: 상주/보조 | H39: 00엔지니어링 | I39: 감리사보 | J39: 과장 | K39: 00시
B40: 00부지조성공사 | D40: 면적 : 1,000,000㎡ | E40: 09.10.10~12.10.09 | F40: 253 | G40: 상주/보조 | H40: 00엔지니어링 | I40: 감리사보 | J40: 과장 | K40: 00시
B41: 60%계 | E41: =SUM(F42:F44)*0.6 -> 379.8
B42: 00도로확장공사 | D42: 2-4차로확장, 1.4km | E42: 09.10.10~12.10.09 | F42: 245 | G42: 상주/보조 | H42: 00엔지니어링 | I42: 감리사보 | J42: 과장 | K42: 00시
B43: 00관거정비공사 | D43: D100, 5.6km | E43: 12.10.10~13.01.03 | F43: 134 | G43: 상주/책임 | H43: 00엔지니어링 | I43: 감리사보 | J43: 과장 | K43: 00시
B44: 00도로확장공사 | D44: 2-4차로확장, 1.4km | E44: 09.10.10~12.10.09 | F44: 254 | G44: 상주/보조 | H44: 00엔지니어링 | I44: 감리사보 | J44: 과장 | K44: 00시
B53: ○ | C53: ='참여감리원 명단'!B7 -> 기술 지원 감리원 | E53: ='참여감리원 명단'!D7 -> 홍길삼 | F53: ='가.개인별 경력 및 실적목록'!C7 -> 도로및 공항
B54: 경력사항
B55: 사업명 | D55: 공사개요(면적, 금액) | G55: 근무형태 및 직책 | H55: 참여당시 | K55: 발주처
E56: (참여기간) | F56: (일수) | H56: 소속회사 | I56: 등급 | J56: 직위
B57: 합계 | C57: 총00건 | E57: =E58+E62 -> 4556.4
B58: 100%계 | E58: =SUM(F59:F61) -> 3081
B59: 00부지조성공사 | D59: 면적 : 20,000,000㎡ | E59: 94.10.10~09.10.09 | F59: 2543 | G59: 상주/보조 | H59: 00엔지니어링 | I59: 감리사보 | J59: 과장 | K59: 00시
B60: 00부지조성공사 | D60: 면적 : 1,000,000㎡ | E60: 09.10.10~12.10.09 | F60: 212 | G60: 상주/보조 | H60: 00엔지니어링 | I60: 감리사보 | J60: 과장 | K60: 00시
B61: 00부지조성공사 | D61: 면적 : 1,000,000㎡ | E61: 09.10.10~12.10.09 | F61: 326 | G61: 상주/보조 | H61: 00엔지니어링 | I61: 감리사보 | J61: 과장 | K61: 00시
B62: 60%계 | E62: =SUM(F63:F65)*0.6 -> 1475.4
B63: 00도로확장공사 | D63: 2-4차로확장, 1.4km | E63: 09.10.10~12.10.09 | F63: 2143 | G63: 상주/보조 | H63: 00엔지니어링 | I63: 감리사보 | J63: 과장 | K63: 00시
B64: 00관거정비공사 | D64: D100, 5.6km | E64: 12.10.10~13.01.03 | F64: 81 | G64: 상주/책임 | H64: 00엔지니어링 | I64: 감리사보 | J64: 과장 | K64: 00시
B65: 00도로확장공사 | D65: 2-4차로확장, 1.4km | E65: 09.10.10~12.10.09 | F65: 235 | G65: 상주/보조 | H65: 00엔지니어링 | I65: 감리사보 | J65: 과장 | K65: 00시
B74: ○ | C74: ='참여감리원 명단'!B7 -> 기술 지원 감리원 | E74: ='참여감리원 명단'!D8 -> 홍길사 | F74: ='가.개인별 경력 및 실적목록'!C8 -> 토질 및 기초
B75: 경력사항
B76: 사업명 | D76: 공사개요(면적, 금액) | G76: 근무형태 및 직책 | H76: 참여당시 | K76: 발주처
E77: (참여기간) | F77: (일수) | H77: 소속회사 | I77: 등급 | J77: 직위
B78: 합계 | C78: 총00건 | E78: =E79+E83 -> 3656.6
B79: 100%계 | E79: =SUM(F80:F82) -> 2855
B80: 00부지조성공사 | D80: 면적 : 20,000,000㎡ | E80: 94.10.10~09.10.09 | F80: 258 | G80: 상주/보조 | H80: 00엔지니어링 | I80: 감리사보 | J80: 과장 | K80: 00시
B81: 00부지조성공사 | D81: 면적 : 1,000,000㎡ | E81: 09.10.10~12.10.09 | F81: 2356 | G81: 상주/보조 | H81: 00엔지니어링 | I81: 감리사보 | J81: 과장 | K81: 00시
B82: 00부지조성공사 | D82: 면적 : 1,000,000㎡ | E82: 09.10.10~12.10.09 | F82: 241 | G82: 상주/보조 | H82: 00엔지니어링 | I82: 감리사보 | J82: 과장 | K82: 00시
B83: 60%계 | E83: =SUM(F84:F86)*0.6 -> 801.6
B84: 00도로확장공사 | D84: 2-4차로확장, 1.4km | E84: 09.10.10~12.10.09 | F84: 546 | G84: 상주/보조 | H84: 00엔지니어링 | I84: 감리사보 | J84: 과장 | K84: 00시
B85: 00관거정비공사 | D85: D100, 5.6km | E85: 12.10.10~13.01.03 | F85: 254 | G85: 상주/책임 | H85: 00엔지니어링 | I85: 감리사보 | J85: 과장 | K85: 00시
B86: 00도로확장공사 | D86: 2-4차로확장, 1.4km | E86: 09.10.10~12.10.09 | F86: 536 | G86: 상주/보조 | H86: 00엔지니어링 | I86: 감리사보 | J86: 과장 | K86: 00시
B95: ○ | C95: ='참여감리원 명단'!B7 -> 기술 지원 감리원 | E95: ='참여감리원 명단'!D9 -> 홍길오 | F95: ='가.개인별 경력 및 실적목록'!C9 -> 토목구조
B96: 경력사항
B97: 사업명 | D97: 공사개요(면적, 금액) | G97: 근무형태 및 직책 | H97: 참여당시 | K97: 발주처
E98: (참여기간) | F98: (일수) | H98: 소속회사 | I98: 등급 | J98: 직위
B99: 합계 | C99: 총00건 | E99: =E100+E104 -> 1943.6
B100: 100%계 | E100: =SUM(F101:F103) -> 1409
B101: 00부지조성공사 | D101: 면적 : 20,000,000㎡ | E101: 94.10.10~09.10.09 | F101: 513 | G101: 상주/보조 | H101: 00엔지니어링 | I101: 감리사보 | J101: 과장 | K101: 00시
B102: 00부지조성공사 | D102: 면적 : 1,000,000㎡ | E102: 09.10.10~12.10.09 | F102: 358 | G102: 상주/보조 | H102: 00엔지니어링 | I102: 감리사보 | J102: 과장 | K102: 00시
B103: 00부지조성공사 | D103: 면적 : 1,000,000㎡ | E103: 09.10.10~12.10.09 | F103: 538 | G103: 상주/보조 | H103: 00엔지니어링 | I103: 감리사보 | J103: 과장 | K103: 00시
B104: 60%계 | E104: =SUM(F105:F107)*0.6 -> 534.6
B105: 00도로확장공사 | D105: 2-4차로확장, 1.4km | E105: 09.10.10~12.10.09 | F105: 234 | G105: 상주/보조 | H105: 00엔지니어링 | I105: 감리사보 | J105: 과장 | K105: 00시
B106: 00관거정비공사 | D106: D100, 5.6km | E106: 12.10.10~13.01.03 | F106: 125 | G106: 상주/책임 | H106: 00엔지니어링 | I106: 감리사보 | J106: 과장 | K106: 00시
B107: 00도로확장공사 | D107: 2-4차로확장, 1.4km | E107: 09.10.10~12.10.09 | F107: 532 | G107: 상주/보조 | H107: 00엔지니어링 | I107: 감리사보 | J107: 과장 | K107: 00시
B116: ○ | C116: ='참여감리원 명단'!B7 -> 기술 지원 감리원 | E116: ='참여감리원 명단'!D10 -> 홍길육 | F116: ='가.개인별 경력 및 실적목록'!C10 -> 상하수도
B117: 경력사항
B118: 사업명 | D118: 공사개요(면적, 금액) | G118: 근무형태 및 직책 | H118: 참여당시 | K118: 발주처
E119: (참여기간) | F119: (일수) | H119: 소속회사 | I119: 등급 | J119: 직위
B120: 합계 | C120: 총00건 | E120: =E121+E125 -> 1752.6
B121: 100%계 | E121: =SUM(F122:F124) -> 1053
B122: 00부지조성공사 | D122: 면적 : 20,000,000㎡ | E122: 94.10.10~09.10.09 | F122: 251 | G122: 상주/보조 | H122: 00엔지니어링 | I122: 감리사보 | J122: 과장 | K122: 00시
B123: 00부지조성공사 | D123: 면적 : 1,000,000㎡ | E123: 09.10.10~12.10.09 | F123: 534 | G123: 상주/보조 | H123: 00엔지니어링 | I123: 감리사보 | J123: 과장 | K123: 00시
B124: 00부지조성공사 | D124: 면적 : 1,000,000㎡ | E124: 09.10.10~12.10.09 | F124: 268 | G124: 상주/보조 | H124: 00엔지니어링 | I124: 감리사보 | J124: 과장 | K124: 00시
B125: 60%계 | E125: =SUM(F126:F128)*0.6 -> 699.6
B126: 00도로확장공사 | D126: 2-4차로확장, 1.4km | E126: 09.10.10~12.10.09 | F126: 248 | G126: 상주/보조 | H126: 00엔지니어링 | I126: 감리사보 | J126: 과장 | K126: 00시
B127: 00관거정비공사 | D127: D100, 5.6km | E127: 12.10.10~13.01.03 | F127: 653 | G127: 상주/책임 | H127: 00엔지니어링 | I127: 감리사보 | J127: 과장 | K127: 00시
B128: 00도로확장공사 | D128: 2-4차로확장, 1.4km | E128: 09.10.10~12.10.09 | F128: 265 | G128: 상주/보조 | H128: 00엔지니어링 | I128: 감리사보 | J128: 과장 | K128: 00시

Sheet 가.직무분야 실적
A1: 참여감리원 개인별 직무분야 실적
A3: ○ 책임감리원 | C3: ='가.해당분야 경력'!E3 -> 홍길일
A4: - 직무분야 실적<설계>
A5: 사업명 | C5: (참여기간) | D5: 실적 | E5: 근무형태 및 직책 | F5: 참여당시 | I5: 발주처
D6: (일수) | F6: 소속회사 | G6: 등급 | H6: 직위
A7: 계 | B7: 총00건 | C7: - | D7: =SUM(D8:D15) -> 12054 | E7: - | F7: - | G7: - | H7: - | I7: -
A8: 00부지조성공사 | C8: 94.10.10~09.10.09 | D8: 5479 | E8: 상주/보조 | F8: 00엔지니어링 | G8: 감리사보 | H8: 과장 | I8: 00시
A9: 00부지조성공사 | C9: 09.10.10~12.10.09 | D9: 6575 | E9: 상주/보조 | F9: 00엔지니어링 | G9: 감리사보 | H9: 과장 | I9: 00시
A16: - 직무분야 실적<시공 등>
A17: 사업명 | C17: (참여기간) | D17: 실적 | E17: 근무형태 및 직책 | F17: 참여당시 | I17: 발주처
D18: (일수) | F18: 소속회사 | G18: 등급 | H18: 직위
A19: 계 | B19: 총00건 | C19: - | D19: =SUM(D20:D27) -> 12054 | E19: - | F19: - | G19: - | H19: - | I19: -
A20: 00부지조성공사 | C20: 94.10.10~09.10.09 | D20: 5479 | E20: 상주/보조 | F20: 00엔지니어링 | G20: 감리사보 | H20: 과장 | I20: 00시
A21: 00부지조성공사 | C21: 09.10.10~12.10.09 | D21: 6575 | E21: 상주/보조 | F21: 00엔지니어링 | G21: 감리사보 | H21: 과장 | I21: 00시
A33: ○ 보조감리원 | C33: ='가.해당분야 경력'!E32 -> 홍길이
A34: - 직무분야 실적<설계>
A35: 사업명 | C35: (참여기간) | D35: 실적 | E35: 근무형태 및 직책 | F35: 참여당시 | I35: 발주처
D36: (일수) | F36: 소속회사 | G36: 등급 | H36: 직위
A37: 계 | B37: 총00건 | C37: - | D37: =SUM(D38:D45) -> 12054 | E37: - | F37: - | G37: - | H37: - | I37: -
A38: 00부지조성공사 | C38: 94.10.10~09.10.09 | D38: 5479 | E38: 상주/보조 | F38: 00엔지니어링 | G38: 감리사보 | H38: 과장 | I38: 00시
A39: 00부지조성공사 | C39: 09.10.10~12.10.09 | D39: 6575 | E39: 상주/보조 | F39: 00엔지니어링 | G39: 감리사보 | H39: 과장 | I39: 00시
A46: - 직무분야 실적<시공 등>
A47: 사업명 | C47: (참여기간) | D47: 실적 | E47: 근무형태 및 직책 | F47: 참여당시 | I47: 발주처
D48: (일수) | F48: 소속회사 | G48: 등급 | H48: 직위
A49: 계 | B49: 총00건 | C49: - | D49: =SUM(D50:D57) -> 12054 | E49: - | F49: - | G49: - | H49: - | I49: -
A50: 00부지조성공사 | C50: 94.10.10~09.10.09 | D50: 5479 | E50: 상주/보조 | F50: 00엔지니어링 | G50: 감리사보 | H50: 과장 | I50: 00시
A51: 00부지조성공사 | C51: 09.10.10~12.10.09 | D51: 6575 | E51: 상주/보조 | F51: 00엔지니어링 | G51: 감리사보 | H51: 과장 | I51: 00시

Sheet 가.교육 및 감리자격 현황
B1: 교육이수 실적 및 감리자격 현황
B3: 가. 교육훈련
B4: 구분 | D4: 성명 | E4: 교육과정명 | F4: 교육기관 | G4: 교육기간 | H4: 기간 | I4: 점수
B5: 상주 감리원 | C5: 책임 감리원 | D5: ='참여감리원 명단'!D5 -> 홍길일 | E5: 전문1 | F5: 건설기술교육원 | G5: 11.11.11~ 11.11.16 | H5: 2 | I5: =IF(H5>=2,"0.5",IF(H5=0,"0",IF(H5<2,"0.3"))) -> 0.5 | K5: 0
E6: 전문2 | F6: 건설기술교육원 | G6: 11.11.19~ 11.11.123 | K6: 1
C7: 보조 감리원 | D7: ='참여감리원 명단'!D6 -> 홍길이 | E7: 전문1 | F7: 건설기술교육원 | G7: 11.11.11~ 11.11.16 | H7: 2 | I7: =IF(H7>=2,"1",IF(H7=0,"0",IF(H7<2,"0.5"))) -> 1 | K7: 2
E8: 전문2 | F8: 건설기술교육원 | G8: 11.11.19~ 11.11.123
B9: 기술 지원 감리원 | C9: 도로및 공항 | D9: ='참여감리원 명단'!D7 -> 홍길삼 | E9: 전문1 | F9: 건설기술교육원 | G9: 11.11.11~ 11.11.16 | H9: 2 | I9: =IF(H9>=2,"0.5",IF(H9=0,"0",IF(H9<2,"0.3"))) -> 0.5
E10: 전문2 | F10: 건설기술교육원 | G10: 11.11.19~ 11.11.123
C11: 토질및 기초 | D11: ='참여감리원 명단'!D8 -> 홍길사 | E11: 전문1 | F11: 건설기술교육원 | G11: 11.11.11~ 11.11.16 | H11: 2 | I11: =IF(H11>=2,"0.5",IF(H11=0,"0",IF(H11<2,"0.3"))) -> 0.5
E12: 전문2 | F12: 건설기술교육원 | G12: 11.11.19~ 11.11.123
C13: 토목 구조 | D13: ='참여감리원 명단'!D9 -> 홍길오 | E13: 전문1 | F13: 건설기술교육원 | G13: 11.11.11~ 11.11.16 | H13: 2 | I13: =IF(H13>=2,"0.5",IF(H13=0,"0",IF(H13<2,"0.3"))) -> 0.5
E14: 전문2 | F14: 건설기술교육원 | G14: 11.11.19~ 11.11.123
C15: 상 하수도 | D15: ='참여감리원 명단'!D10 -> 홍길육 | E15: 전문1 | F15: 건설기술교육원 | G15: 11.11.11~ 11.11.16 | H15: 2 | I15: =IF(H15>=2,"0.5",IF(H15=0,"0",IF(H15<2,"0.3"))) -> 0.5
E16: 전문2 | F16: 건설기술교육원 | G16: 11.11.19~ 11.11.123
I17: =ROUND((I9+I11+I13+I15)/4,2) -> 0.5
B19: 나. 책임감리원 및 기술지원감리원 기술자격 현황
B20: 구분 | D20: 자격증 (또는 등급) | F20: 분야 | G20: 비고 | H20: - | I20: 점수
B21: 상주감리원 (책임감리원) | D21: 기술사 | F21: 토목시공 | G21: - | I21: =IF(D21="기술사","0.5",IF(D21="기사","0.3",IF(D21="산업기사","0.1"))) -> 0.5 | K21: 기술사 | L21: 수석감리사 | M21: 수석감리사
B22: 기술지원감리원 (자격증평가) | D22: 기술사 | F22: 토질 및 기초 | G22: - | I22: =IF(D22="기술사","0.5",IF(D22="기사","0.3",IF(D22="산업기사","0.1"))) -> 0.5 | K22: 기사 | L22: 감리사이하 | M22: 감리사
B23: 기술지원감리원 | D23: 수석감리사 | F23: 도로및 공항 | G23: =IF(D23="수석감리사","3",IF(D23="감리사이하","2")) -> 3 | I23: =ROUND((G23+G24+G25+G26)/4,2) -> 3 | K23: 산업기사 | M23: 감리사보
B24: 기술지원감리원 | D24: 수석감리사 | F24: 토질 및 기초 | G24: =IF(D24="수석감리사","3",IF(D24="감리사이하","2")) -> 3
B25: 기술지원감리원 | D25: 수석감리사 | F25: 토목구조 | G25: =IF(D25="수석감리사","3",IF(D25="감리사이하","2")) -> 3 | K25: 없음
B26: 기술지원감리원 | D26: 수석감리사 | F26: 상하수도 | G26: =IF(D26="수석감리사","3",IF(D26="감리사이하","2")) -> 3

Sheet 나.유사용역사업 수행실적
B1: 유사용역사업 수행실적
J2: 산정시작일 | K2: =K3-365*3 -> 2010-10-05
J3: 공고일 | K3: =참여업체현황!G2 -> 2013-10-04
B4: 구분 | C4: 업체명 | D4: 적용금액 (A, 천원) | G4: 참여지분율 (B, %) | H4: 수행실적 (A×B, 천원) | I4: 수행실적 (억원) | J4: 평가점수
B5: 1 | C5: =참여업체현황!B5 -> A사 | D5: =J16 -> 2633346.814 | G5: =참여업체현황!E5 -> 0.4 | H5: =D5*G5 -> 1053338.725
B6: 2 | C6: =참여업체현황!B6 -> B사 | D6: =J34 -> 2633346.814 | G6: =참여업체현황!E6 -> 0.3 | H6: =D6*G6 -> 790004.0441
B7: 3 | C7: =참여업체현황!B7 -> C사 | D7: =J52 -> 2633346.814 | G7: =참여업체현황!E7 -> 0.1 | H7: 263334.6814
B8: 4 | C8: =참여업체현황!B8 -> D사 | D8: =J70 -> 2633346.814 | G8: =참여업체현황!E8 -> 0.1 | H8: 263334.6814
B9: 5 | C9: =참여업체현황!B9 -> E사 | D9: =J88 -> 2633346.814 | G9: =참여업체현황!E9 -> 0.1 | H9: 263334.6814
C10: 계 | H10: =SUM(H5:H9) -> 2633346.814 | I10: =H10/100000 -> 26.33346814 | J10: =IF(I10>=60,"10",IF(I10>=50,"9", IF(I10>=40,"8", IF(I10>=30,"7", IF(I10<30,"6"))))) -> 6
B13: ○ | C13: =참여업체현황!B5 -> A사
B14: 구분 | C14: 용역명 | D14: 발주처 | E14: 준공(계약) 금액(천원) | F14: 도급비율 (%) | G14: 전체사업기간(일) (C ) | I14: 해당기간 (일) | J14: 적용금액 (천원) | K14: 비고
E15: (A) | F15: (B) | G15: 시작 | H15: 종료 | I15: (D) | J15: (A×B×D/C)
B16: 합계 | D16: 총00건 | J16: =J17+J24 -> 2633346.814
B17: 해당 분야 | C17: 1 | J17: =SUM(J18:J23)*100% -> 2114677.375 | M17: 산정시작 앞 | N17: 공고일 뒤
B18: 1 | C18: 000부지조성공사 감리용역 | D18: 00공사 | E18: 1000000 | F18: 1 | G18: 2011-10-02 | H18: 2013-10-01 | J18: =E18*F18*I19/G19 -> 1000000 | K18: 완료
G19: =IF(H18-G18=0," ",IF(H18-G18>0,H18-G18+1)) -> 731 | I19: =G19-M19-N19 -> 731 | M19: =IF($K$2-G18<=0, "0",IF($K$2-G18>0, $K$2-G18)) -> 0 | N19: =IF(H18-$K$3<=0, "0",IF(H18-$K$3>0, H18-$K$3)) -> 0
B20: 2 | C20: 000부지조성공사 감리용역 | D20: 00공사 | E20: 1000000 | F20: 0.5 | G20: 2010-01-03 | H20: 2016-01-01 | J20: =E20*F20*I21/G21 -> 250228.3105 | K20: 진행
G21: =IF(H20-G20=0," ",IF(H20-G20>0,H20-G20+1)) -> 2190 | I21: =G21-M21-N21 -> 1096 | M21: =IF($K$2-G20<=0, "0",IF($K$2-G20>0, $K$2-G20)) -> 275 | N21: =IF(H20-$K$3<=0, "0",IF(H20-$K$3>0, H20-$K$3)) -> 819
B22: 3 | C22: 000부지조성공사 감리용역 | D22: 00공사 | E22: 2000000 | F22: 0.7 | G22: 2009-10-02 | H22: 2012-05-20 | J22: =E22*F22*I23/G23 -> 864449.0644 | K22: 완료
G23: =IF(H22-G22=0," ",IF(H22-G22>0,H22-G22+1)) -> 962 | I23: =G23-M23-N23 -> 594 | M23: =IF($K$2-G22<=0, "0",IF($K$2-G22>0, $K$2-G22)) -> 368 | N23: =IF(H22-$K$3<=0, "0",IF(H22-$K$3>0, H22-$K$3)) -> 0
B24: 기타 분야 | C24: 0.6 | J24: =SUM(J25:J28)*60% -> 518669.4387
B25: 1 | C25: 000도로확장공사 감리용역 | D25: 00시 | E25: 1000000 | F25: 0.8 | G25: 2009-10-02 | H25: 2012-05-20 | J25: =E25*F25*I26/G26 -> 493970.894
G26: =IF(H25-G25=0," ",IF(H25-G25>0,H25-G25+1)) -> 962 | I26: =G26-M26-N26 -> 594 | M26: =IF($K$2-G25<=0, "0",IF($K$2-G25>0, $K$2-G25)) -> 368 | N26: =IF(H25-$K$3<=0, "0",IF(H25-$K$3>0, H25-$K$3)) -> 0
B27: 2 | C27: 000도로확장공사 감리용역 | D27: 00시 | E27: 1200000 | F27: 0.5 | G27: 2009-10-02 | H27: 2012-05-20 | J27: =E27*F27*I28/G28 -> 370478.1705
G28: =IF(H27-G27=0," ",IF(H27-G27>0,H27-G27+1)) -> 962 | I28: =G28-M28-N28 -> 594 | M28: =IF($K$2-G27<=0, "0",IF($K$2-G27>0, $K$2-G27)) -> 368 | N28: =IF(H27-$K$3<=0, "0",IF(H27-$K$3>0, H27-$K$3)) -> 0
B31: ○ | C31: =참여업체현황!B6 -> B사
B32: 구분 | C32: 용역명 | D32: 발주처 | E32: 준공(계약) 금액(천원) | F32: 도급비율 (%) | G32: 전체사업기간(일) (C ) | I32: 해당기간 (일) | J32: 적용금액 (천원) | K32: 비고
E33: (A) | F33: (B) | G33: 시작 | H33: 종료 | I33: (D) | J33: (A×B×D/C)
B34: 합계 | D34: 총00건 | J34: =J35+J42 -> 2633346.814
B35: 해당 분야 | C35: 1 | J35: =SUM(J36:J41)*100% -> 2114677.375 | M35: 산정시작 앞 | N35: 공고일 뒤
B36: 1 | C36: 000부지조성공사 감리용역 | D36: 00공사 | E36: 1000000 | F36: 1 | G36: 2011-10-02 | H36: 2013-10-01 | J36: =E36*F36*I37/G37 -> 1000000 | K36: 완료
G37: =IF(H36-G36=0," ",IF(H36-G36>0,H36-G36+1)) -> 731 | I37: =G37-M37-N37 -> 731 | M37: =IF($K$2-G36<=0, "0",IF($K$2-G36>0, $K$2-G36)) -> 0 | N37: =IF(H36-$K$3<=0, "0",IF(H36-$K$3>0, H36-$K$3)) -> 0
B38: 2 | C38: 000부지조성공사 감리용역 | D38: 00공사 | E38: 1000000 | F38: 0.5 | G38: 2010-01-03 | H38: 2016-01-01 | J38: =E38*F38*I39/G39 -> 250228.3105 | K38: 진행
G39: =IF(H38-G38=0," ",IF(H38-G38>0,H38-G38+1)) -> 2190 | I39: =G39-M39-N39 -> 1096 | M39: =IF($K$2-G38<=0, "0",IF($K$2-G38>0, $K$2-G38)) -> 275 | N39: =IF(H38-$K$3<=0, "0",IF(H38-$K$3>0, H38-$K$3)) -> 819
B40: 3 | C40: 000부지조성공사 감리용역 | D40: 00공사 | E40: 2000000 | F40: 0.7 | G40: 2009-10-02 | H40: 2012-05-20 | J40: =E40*F40*I41/G41 -> 864449.0644 | K40: 완료
G41: =IF(H40-G40=0," ",IF(H40-G40>0,H40-G40+1)) -> 962 | I41: =G41-M41-N41 -> 594 | M41: =IF($K$2-G40<=0, "0",IF($K$2-G40>0, $K$2-G40)) -> 368 | N41: =IF(H40-$K$3<=0, "0",IF(H40-$K$3>0, H40-$K$3)) -> 0
B42: 기타 분야 | C42: 0.6 | J42: =SUM(J43:J46)*60% -> 518669.4387
B43: 1 | C43: 000도로확장공사 감리용역 | D43: 00시 | E43: 1000000 | F43: 0.8 | G43: 2009-10-02 | H43: 2012-05-20 | J43: =E43*F43*I44/G44 -> 493970.894
G44: =IF(H43-G43=0," ",IF(H43-G43>0,H43-G43+1)) -> 962 | I44: =G44-M44-N44 -> 594 | M44: =IF($K$2-G43<=0, "0",IF($K$2-G43>0, $K$2-G43)) -> 368 | N44: =IF(H43-$K$3<=0, "0",IF(H43-$K$3>0, H43-$K$3)) -> 0
B45: 2 | C45: 000도로확장공사 감리용역 | D45: 00시 | E45: 1200000 | F45: 0.5 | G45: 2009-10-02 | H45: 2012-05-20 | J45: =E45*F45*I46/G46 -> 370478.1705
G46: =IF(H45-G45=0," ",IF(H45-G45>0,H45-G45+1)) -> 962 | I46: =G46-M46-N46 -> 594 | M46: =IF($K$2-G45<=0, "0",IF($K$2-G45>0, $K$2-G45)) -> 368 | N46: =IF(H45-$K$3<=0, "0",IF(H45-$K$3>0, H45-$K$3)) -> 0
B49: ○ | C49: =참여업체현황!B7 -> C사
B50: 구분 | C50: 용역명 | D50: 발주처 | E50: 준공(계약) 금액(천원) | F50: 도급비율 (%) | G50: 전체사업기간(일) (C ) | I50: 해당기간 (일) | J50: 적용금액 (천원) | K50: 비고
E51: (A) | F51: (B) | G51: 시작 | H51: 종료 | I51: (D) | J51: (A×B×D/C)
B52: 합계 | D52: 총00건 | J52: =J53+J60 -> 2633346.814
B53: 해당 분야 | C53: 1 | J53: =SUM(J54:J59)*100% -> 2114677.375 | M53: 산정시작 앞 | N53: 공고일 뒤
B54: 1 | C54: 000부지조성공사 감리용역 | D54: 00공사 | E54: 1000000 | F54: 1 | G54: 2011-10-02 | H54: 2013-10-01 | J54: =E54*F54*I55/G55 -> 1000000 | K54: 완료
G55: =IF(H54-G54=0," ",IF(H54-G54>0,H54-G54+1)) -> 731 | I55: =G55-M55-N55 -> 731 | M55: =IF($K$2-G54<=0, "0",IF($K$2-G54>0, $K$2-G54)) -> 0 | N55: =IF(H54-$K$3<=0, "0",IF(H54-$K$3>0, H54-$K$3)) -> 0
B56: 2 | C56: 000부지조성공사 감리용역 | D56: 00공사 | E56: 1000000 | F56: 0.5 | G56: 2010-01-03 | H56: 2016-01-01 | J56: =E56*F56*I57/G57 -> 250228.3105 | K56: 진행
G57: =IF(H56-G56=0," ",IF(H56-G56>0,H56-G56+1)) -> 2190 | I57: =G57-M57-N57 -> 1096 | M57: =IF($K$2-G56<=0, "0",IF($K$2-G56>0, $K$2-G56)) -> 275 | N57: =IF(H56-$K$3<=0, "0",IF(H56-$K$3>0, H56-$K$3)) -> 819
B58: 3 | C58: 000부지조성공사 감리용역 | D58: 00공사 | E58: 2000000 | F58: 0.7 | G58: 2009-10-02 | H58: 2012-05-20 | J58: =E58*F58*I59/G59 -> 864449.0644 | K58: 완료
G59: =IF(H58-G58=0," ",IF(H58-G58>0,H58-G58+1)) -> 962 | I59: =G59-M59-N59 -> 594 | M59: =IF($K$2-G58<=0, "0",IF($K$2-G58>0, $K$2-G58)) -> 368 | N59: =IF(H58-$K$3<=0, "0",IF(H58-$K$3>0, H58-$K$3)) -> 0
B60: 기타 분야 | C60: 0.6 | J60: =SUM(J61:J64)*60% -> 518669.4387
B61: 1 | C61: 000도로확장공사 감리용역 | D61: 00시 | E61: 1000000 | F61: 0.8 | G61: 2009-10-02 | H61: 2012-05-20 | J61: =E61*F61*I62/G62 -> 493970.894
G62: =IF(H61-G61=0," ",IF(H61-G61>0,H61-G61+1)) -> 962 | I62: =G62-M62-N62 -> 594 | M62: =IF($K$2-G61<=0, "0",IF($K$2-G61>0, $K$2-G61)) -> 368 | N62: =IF(H61-$K$3<=0, "0",IF(H61-$K$3>0, H61-$K$3)) -> 0
B63: 2 | C63: 000도로확장공사 감리용역 | D63: 00시 | E63: 1200000 | F63: 0.5 | G63: 2009-10-02 | H63: 2012-05-20 | J63: =E63*F63*I64/G64 -> 370478.1705
G64: =IF(H63-G63=0," ",IF(H63-G63>0,H63-G63+1)) -> 962 | I64: =G64-M64-N64 -> 594 | M64: =IF($K$2-G63<=0, "0",IF($K$2-G63>0, $K$2-G63)) -> 368 | N64: =IF(H63-$K$3<=0, "0",IF(H63-$K$3>0, H63-$K$3)) -> 0
B67: ○ | C67: =참여업체현황!B8 -> D사
B68: 구분 | C68: 용역명 | D68: 발주처 | E68: 준공(계약) 금액(천원) | F68: 도급비율 (%) | G68: 전체사업기간(일) (C ) | I68: 해당기간 (일) | J68: 적용금액 (천원) | K68: 비고
E69: (A) | F69: (B) | G69: 시작 | H69: 종료 | I69: (D) | J69: (A×B×D/C)
B70: 합계 | D70: 총00건 | J70: =J71+J78 -> 2633346.814
B71: 해당 분야 | C71: 1 | J71: =SUM(J72:J77)*100% -> 2114677.375 | M71: 산정시작 앞 | N71: 공고일 뒤
B72: 1 | C72: 000부지조성공사 감리용역 | D72: 00공사 | E72: 1000000 | F72: 1 | G72: 2011-10-02 | H72: 2013-10-01 | J72: =E72*F72*I73/G73 -> 1000000 | K72: 완료
G73: =IF(H72-G72=0," ",IF(H72-G72>0,H72-G72+1)) -> 731 | I73: =G73-M73-N73 -> 731 | M73: =IF($K$2-G72<=0, "0",IF($K$2-G72>0, $K$2-G72)) -> 0 | N73: =IF(H72-$K$3<=0, "0",IF(H72-$K$3>0, H72-$K$3)) -> 0
B74: 2 | C74: 000부지조성공사 감리용역 | D74: 00공사 | E74: 1000000 | F74: 0.5 | G74: 2010-01-03 | H74: 2016-01-01 | J74: =E74*F74*I75/G75 -> 250228.3105 | K74: 진행
G75: =IF(H74-G74=0," ",IF(H74-G74>0,H74-G74+1)) -> 2190 | I75: =G75-M75-N75 -> 1096 | M75: =IF($K$2-G74<=0, "0",IF($K$2-G74>0, $K$2-G74)) -> 275 | N75: =IF(H74-$K$3<=0, "0",IF(H74-$K$3>0, H74-$K$3)) -> 819
B76: 3 | C76: 000부지조성공사 감리용역 | D76: 00공사 | E76: 2000000 | F76: 0.7 | G76: 2009-10-02 | H76: 2012-05-20 | J76: =E76*F76*I77/G77 -> 864449.0644 | K76: 완료
G77: =IF(H76-G76=0," ",IF(H76-G76>0,H76-G76+1)) -> 962 | I77: =G77-M77-N77 -> 594 | M77: =IF($K$2-G76<=0, "0",IF($K$2-G76>0, $K$2-G76)) -> 368 | N77: =IF(H76-$K$3<=0, "0",IF(H76-$K$3>0, H76-$K$3)) -> 0
B78: 기타 분야 | C78: 0.6 | J78: =SUM(J79:J82)*60% -> 518669.4387
B79: 1 | C79: 000도로확장공사 감리용역 | D79: 00시 | E79: 1000000 | F79: 0.8 | G79: 2009-10-02 | H79: 2012-05-20 | J79: =E79*F79*I80/G80 -> 493970.894
G80: =IF(H79-G79=0," ",IF(H79-G79>0,H79-G79+1)) -> 962 | I80: =G80-M80-N80 -> 594 | M80: =IF($K$2-G79<=0, "0",IF($K$2-G79>0, $K$2-G79)) -> 368 | N80: =IF(H79-$K$3<=0, "0",IF(H79-$K$3>0, H79-$K$3)) -> 0
B81: 2 | C81: 000도로확장공사 감리용역 | D81: 00시 | E81: 1200000 | F81: 0.5 | G81: 2009-10-02 | H81: 2012-05-20 | J81: =E81*F81*I82/G82 -> 370478.1705
G82: =IF(H81-G81=0," ",IF(H81-G81>0,H81-G81+1)) -> 962 | I82: =G82-M82-N82 -> 594 | M82: =IF($K$2-G81<=0, "0",IF($K$2-G81>0, $K$2-G81)) -> 368 | N82: =IF(H81-$K$3<=0, "0",IF(H81-$K$3>0, H81-$K$3)) -> 0
B85: ○ | C85: =참여업체현황!B9 -> E사
B86: 구분 | C86: 용역명 | D86: 발주처 | E86: 준공(계약) 금액(천원) | F86: 도급비율 (%) | G86: 전체사업기간(일) (C ) | I86: 해당기간 (일) | J86: 적용금액 (천원) | K86: 비고
E87: (A) | F87: (B) | G87: 시작 | H87: 종료 | I87: (D) | J87: (A×B×D/C)
B88: 합계 | D88: 총00건 | J88: =J89+J96 -> 2633346.814
B89: 해당 분야 | C89: 1 | J89: =SUM(J90:J95)*100% -> 2114677.375 | M89: 산정시작 앞 | N89: 공고일 뒤
B90: 1 | C90: 000부지조성공사 감리용역 | D90: 00공사 | E90: 1000000 | F90: 1 | G90: 2011-10-02 | H90: 2013-10-01 | J90: =E90*F90*I91/G91 -> 1000000 | K90: 완료
G91: =IF(H90-G90=0," ",IF(H90-G90>0,H90-G90+1)) -> 731 | I91: =G91-M91-N91 -> 731 | M91: =IF($K$2-G90<=0, "0",IF($K$2-G90>0, $K$2-G90)) -> 0 | N91: =IF(H90-$K$3<=0, "0",IF(H90-$K$3>0, H90-$K$3)) -> 0
B92: 2 | C92: 000부지조성공사 감리용역 | D92: 00공사 | E92: 1000000 | F92: 0.5 | G92: 2010-01-03 | H92: 2016-01-01 | J92: =E92*F92*I93/G93 -> 250228.3105 | K92: 진행
G93: =IF(H92-G92=0," ",IF(H92-G92>0,H92-G92+1)) -> 2190 | I93: =G93-M93-N93 -> 1096 | M93: =IF($K$2-G92<=0, "0",IF($K$2-G92>0, $K$2-G92)) -> 275 | N93: =IF(H92-$K$3<=0, "0",IF(H92-$K$3>0, H92-$K$3)) -> 819
B94: 3 | C94: 000부지조성공사 감리용역 | D94: 00공사 | E94: 2000000 | F94: 0.7 | G94: 2009-10-02 | H94: 2012-05-20 | J94: =E94*F94*I95/G95 -> 864449.0644 | K94: 완료
G95: =IF(H94-G94=0," ",IF(H94-G94>0,H94-G94+1)) -> 962 | I95: =G95-M95-N95 -> 594 | M95: =IF($K$2-G94<=0, "0",IF($K$2-G94>0, $K$2-G94)) -> 368 | N95: =IF(H94-$K$3<=0, "0",IF(H94-$K$3>0, H94-$K$3)) -> 0
B96: 기타 분야 | C96: 0.6 | J96: =SUM(J97:J100)*60% -> 518669.4387
B97: 1 | C97: 000도로확장공사 감리용역 | D97: 00시 | E97: 1000000 | F97: 0.8 | G97: 2009-10-02 | H97: 2012-05-20 | J97: =E97*F97*I98/G98 -> 493970.894
G98: =IF(H97-G97=0," ",IF(H97-G97>0,H97-G97+1)) -> 962 | I98: =G98-M98-N98 -> 594 | M98: =IF($K$2-G97<=0, "0",IF($K$2-G97>0, $K$2-G97)) -> 368 | N98: =IF(H97-$K$3<=0, "0",IF(H97-$K$3>0, H97-$K$3)) -> 0
B99: 2 | C99: 000도로확장공사 감리용역 | D99: 00시 | E99: 1200000 | F99: 0.5 | G99: 2009-10-02 | H99: 2012-05-20 | J99: =E99*F99*I100/G100 -> 370478.1705
G100: =IF(H99-G99=0," ",IF(H99-G99>0,H99-G99+1)) -> 962 | I100: =G100-M100-N100 -> 594 | M100: =IF($K$2-G99<=0, "0",IF($K$2-G99>0, $K$2-G99)) -> 368 | N100: =IF(H99-$K$3<=0, "0",IF(H99-$K$3>0, H99-$K$3)) -> 0

Sheet 다.신용도
B1: 신용도
B3: 가. 입찰참가제한 또는 업무정지기간
B4: 회사명 (또는 성명) | C4: 업무정지 및 제제기간 | D4: 기간(월) | E4: 조치기관명 | F4: 사유요약 | G4: 점수 | H4: 비고
B5: 00엔지니어링 | C5: 2014.01.01~2014.03.01 | D5: 2 | E5: 00공사 | F5: 0 | G5: =D5*0.2 -> 0.4
B6: 0 | C6: 2014.01.01~2014.03.01 | D6: 1 | E6: 00시 | F6: 0 | G6: =D6*0.2 -> 0.2
B7: 합계 | G7: =SUM(G5:G6) -> 0.6
B9: 나. 부실벌점
B10: 회사명 (또는 성명) | C10: 부실벌점 | D10: 해당감리 | F10: 사유 | G10: 점수 | H10: 비고
B11: 00엔지니어링 | C11: 3 | G11: 3
B13: 합계 | G13: =SUM(G11:G12) -> 3
B15: 다. 재정상태건실도 | J15: 점 수 | K15: 회사채의 신용평가등급 | L15: 기업어음의 신용평가등급 | M15: 기업 신용평가등급
B16: 회사명 | C16: 신용평가등급 | D16: 평가점수 (A) | E16: 지분율 (B, %) | F16: 환산점수 (A×B) | G16: 평가합계 | H16: 비고 | J16: 3 | K16: AAA | L16: - | M16: (회사채에 대한 신용평가등급 AAA에 준하는 등급)
B17: =참여업체현황!B5 -> A사 | C17: AA+ | D17: 3 | E17: =참여업체현황!E5 -> 0.4 | F17: =D17*E17 -> 1.2 | G17: =ROUND(SUM(F17:F21),2) -> 2.67 | H17: 회사채 | K17: AA+, AA0, AA- | L17: A1 | M17: (회사채에 대한 신용평가등급 AA＋, AA0, AA-에 준하는 등급)
B18: =참여업체현황!B6 -> B사 | C18: BBB+ | D18: 2.7 | E18: =참여업체현황!E6 -> 0.3 | F18: =D18*E18 -> 0.81 | H18: 회사채 | K18: A+ | L18: A2+ | M18: (회사채에 대한 신용평가등급 A＋에 준하는 등급)
B19: =참여업체현황!B7 -> C사 | C19: BB+ | D19: 2.4 | E19: =참여업체현황!E7 -> 0.1 | F19: 0.24 | H19: 회사채 | K19: A0 | L19: A20 | M19: (회사채에 대한 신용평가등급 A0에 준하는 등급)
B20: =참여업체현황!B8 -> D사 | C20: CCC+ | D20: 2.1 | E20: =참여업체현황!E8 -> 0.1 | F20: 0.21 | H20: 회사채 | K20: A- | L20: A2- | M20: (회사채에 대한 신용평가등급 A-에 준하는 등급)
B21: =참여업체현황!B9 -> E사 | C21: CCC+ | D21: 2.1 | E21: =참여업체현황!E9 -> 0.1 | F21: 0.21 | H21: 회사채 | J21: 2.7 | K21: BBB+ | L21: A3+ | M21: (회사채에 대한 신용평가등급 BBB＋에 준하는 등급)
K22: BBB0 | L22: A30 | M22: (회사채에 대한 신용평가등급 BBB0에 준하는 등급)
K23: BBB- | L23: A3- | M23: (회사채에 대한 신용평가등급 BBB-에 준하는 등급)
J24: 2.4 | K24: BB+, BB0 | L24: B+ | M24: (회사채에 대한 신용평가등급 BB＋, BB0에 준하는 등급)
K25: BB- | L25: B0 | M25: (회사채에 대한 신용평가등급 BB-에 준하는 등급)
K26: B+, B0, B- | L26: B- | M26: (회사채에 대한 신용평가등급 B＋, B0, B-에 준하는 등급)
J27: 2.1 | K27: CCC+이하 | L27: C 이하 | M27: (회사채에 대한 신용평가등급 CCC＋ 이하에 준하는 등급)

Sheet 라.기술개발 및 투자실적
B1: 기술개발 및 투자실적 | P1: 신기술 | Q1: 1 | R1: 0.9 | S1: 0.8 | T1: 0.7 | U1: 0.6 | V1: 구분 | W1: 5년미만 | X1: 5년이상 10년미만 | Y1: 10년이상 20년미만
B2: 가. 개발실적 | P2: 실적 (건) | Q2: 5이상 | R2: 5미만 4이상 | S2: 4미만 3이상 | T2: 3미만 2이상 | U2: 2미만 1이상 | V2: 특허 | W2: 1 | X2: 0.8 | Y2: 0.6
B3: 업체명 | E3: 참여지분율 | G3: 각업체별 점수 | H3: 적용점수 | I3: 비고 | P3: 실적금액 (억원) | Q3: 20이상 | R3: 20미만 | S3: 18미만 16이상 | T3: 16미만 14이상 | U3: 14미만 12이상 | V3: 실용신안 | W3: 1 | X3: 0.8 | Y3: 0
B4: =참여업체현황!B5 -> A사 | E4: =참여업체현황!E5 -> 0.4 | G4: =N26 -> 3 | H4: =E4*G4 -> 1.2
B5: =참여업체현황!B6 -> B사 | E5: =참여업체현황!E6 -> 0.3 | G5: =N43 -> 3 | H5: =E5*G5 -> 0.9
B6: =참여업체현황!B7 -> C사 | E6: =참여업체현황!E7 -> 0.1 | G6: =N60 -> 3 | H6: 0.3
B7: =참여업체현황!B8 -> D사 | E7: =참여업체현황!E8 -> 0.1 | G7: =N77 -> 3 | H7: 0.3
B8: =참여업체현황!B9 -> E사 | E8: =참여업체현황!E9 -> 0.1 | G8: =N94 -> 3 | H8: 0.3
B9: 합계 | H9: =SUM(H4:H8) -> 3
B11: ○ | C11: =B4 -> A사 | M11: =참여업체현황!F2 -> 공고일 | N11: =참여업체현황!G2 -> 2013-10-04
B12: 구분 | C12: 연번 | D12: 명칭 | E12: 지정번호 | F12: 출원자 수 | G12: 보호기간 또는 출원일 | I12: 경과기간 | J12: 사용실적 | L12: 가중치 | M12: 점수 | N12: 비고 | P12: 가중치
G13: (시작) | H13: (종료) | I13: (년) | J13: (건) | K13: (금액,억원) | P13: 건수 | Q13: 금액
B14: 건설 신기술 | C14: 1 | D14: 0 | E14: 000-00 | F14: 1 | G14: 2010-10-02 | H14: 2014-10-01 | J14: 6 | K14: 22 | L14: =IF(P14>=Q14, P14,Q14) -> 1 | M14: =IF(L14=0,0,L14/F14) -> 1 | P14: =IF(J14<1, " ", IF(J14>=5,"1", IF(J14>=4, "0.9", IF(J14>=3, "0.8", IF(J14>=2,"0.7", IF(J14>=1,"0.6")))))) -> 1 | Q14: =IF(K14<12, " ", IF(K14>=20,"1", IF(K14>=18, "0.9", IF(K14>=16, "0.8", IF(K14>=14,"0.7", IF(K14>=12,"0.6")))))) -> 1
C15: 2 | D15: 0 | E15: 000-00 | F15: 3 | G15: 2010-10-02 | H15: 2014-10-01 | J15: 2 | K15: 17 | L15: =IF(P15>=Q15, P15,Q15) -> 0.8 | M15: =IF(L15=0,0,L15/F15) -> 0.2666666667 | P15: =IF(J15<1, " ", IF(J15>=5,"1", IF(J15>=4, "0.9", IF(J15>=3, "0.8", IF(J15>=2,"0.7", IF(J15>=1,"0.6")))))) -> 0.7 | Q15: =IF(K15<12, " ", IF(K15>=20,"1", IF(K15>=18, "0.9", IF(K15>=16, "0.8", IF(K15>=14,"0.7", IF(K15>=12,"0.6")))))) -> 0.8
C16: 3 | D16: 0 | E16: 000-00 | F16: 5 | G16: 2010-10-02 | H16: 2014-10-01 | J16: 1 | K16: 13 | L16: =IF(P16>=Q16, P16,Q16) -> 0.6 | M16: 0.12 | P16: =IF(J16<1, " ", IF(J16>=5,"1", IF(J16>=4, "0.9", IF(J16>=3, "0.8", IF(J16>=2,"0.7", IF(J16>=1,"0.6")))))) -> 0.6 | Q16: =IF(K16<12, " ", IF(K16>=20,"1", IF(K16>=18, "0.9", IF(K16>=16, "0.8", IF(K16>=14,"0.7", IF(K16>=12,"0.6")))))) -> 0.6
C17: 소계 | M17: =SUM(M14:M16) -> 1.386666667
B18: 특허 | C18: 1 | D18: 0 | E18: 000-000 | F18: 4 | G18: 1995-01-02 | H18: - | I18: =($N$11-G18+1)/365 -> 18.76986301 | J18: - | K18: - | L18: =IF(I18<5,100%,IF(I18<10,80%,IF(I18<20,60%,IF(I18>=20,0)))) -> 0.6 | M18: =IF(L18=0,0,L18/F18) -> 0.15
C19: 2 | D19: 0 | E19: 000-000 | F19: 1 | G19: 2011-11-12 | H19: - | I19: =($N$11-G19+1)/365 -> 1.898630137 | J19: - | K19: - | L19: =IF(I19<5,100%,IF(I19<10,80%,IF(I19<20,60%,IF(I19>=20,0)))) -> 1 | M19: =IF(L19=0,0,L19/F19) -> 1
C20: 3 | D20: 0 | E20: 000-000 | F20: 2 | G20: 2010-09-10 | H20: - | I20: =($N$11-G20+1)/365 -> 3.071232877 | J20: - | K20: - | L20: =IF(I20<5,100%,IF(I20<10,80%,IF(I20<20,60%,IF(I20>=20,0)))) -> 1 | M20: =IF(L20=0,0,L20/F20) -> 0.5
C21: 소계 | M21: =SUM(M18:M20) -> 1.65
B22: 실용 신안 | C22: 1 | D22: 0 | E22: 000-000 | F22: 3 | G22: 2008-01-02 | H22: - | I22: =($N$11-G22+1)/365 -> 5.761643836 | J22: - | K22: - | L22: =IF(I22<5,100%,IF(I22<10,80%,IF(I22>=10,0))) -> 0.8 | M22: =IF(L22=0,0,L22/F22) -> 0.2666666667
C23: 2 | D23: 0 | E23: 000-000 | F23: 5 | G23: 2004-01-10 | I23: =($N$11-G23+1)/365 -> 9.742465753 | L23: =IF(I23<5,100%,IF(I23<10,80%,IF(I23>=10,0))) -> 0.8 | M23: =IF(L23=0,0,L23/F23) -> 0.16
C24: 3 | D24: 0 | E24: 000-000 | F24: 3 | G24: 2010-01-01 | I24: =($N$11-G24+1)/365 -> 3.761643836 | L24: 1 | M24: 0.3333333333
C25: 소계 | M25: =SUM(M22:M24) -> 0.76
B26: 합계 | M26: =ROUND(M17+M21+M25,2) -> 3.8 | N26: =IF(M26<=3,M26,IF(M26>3,"3")) -> 3
B28: ○ | C28: =B5 -> B사
B29: 구분 | C29: 연번 | D29: 명칭 | E29: 지정번호 | F29: 출원자 수 | G29: 보호기간 또는 출원일 | I29: 경과기간 | J29: 사용실적 | L29: 가중치 | M29: 점수 | N29: 비고 | P29: 가중치
G30: (시작) | H30: (종료) | I30: (년) | J30: (건) | K30: (금액,억원) | P30: 건수 | Q30: 금액
B31: 건설 신기술 | C31: 1 | D31: 0 | E31: 000-00 | F31: 1 | G31: 2010-10-02 | H31: 2014-10-01 | J31: 4 | K31: 17 | L31: =IF(P31>=Q31, P31,Q31) -> 0.9 | M31: =IF(L31=0,0,L31/F31) -> 0.9 | P31: =IF(J31<1, " ", IF(J31>=5,"1", IF(J31>=4, "0.9", IF(J31>=3, "0.8", IF(J31>=2,"0.7", IF(J31>=1,"0.6")))))) -> 0.9 | Q31: =IF(K31<12, " ", IF(K31>=20,"1", IF(K31>=18, "0.9", IF(K31>=16, "0.8", IF(K31>=14,"0.7", IF(K31>=12,"0.6")))))) -> 0.8
C32: 2 | D32: 0 | E32: 000-00 | F32: 5 | G32: 2010-10-02 | H32: 2014-10-01 | J32: 4 | K32: 17 | L32: =IF(P32>=Q32, P32,Q32) -> 0.9 | M32: =IF(L32=0,0,L32/F32) -> 0.18 | P32: =IF(J32<1, " ", IF(J32>=5,"1", IF(J32>=4, "0.9", IF(J32>=3, "0.8", IF(J32>=2,"0.7", IF(J32>=1,"0.6")))))) -> 0.9 | Q32: =IF(K32<12, " ", IF(K32>=20,"1", IF(K32>=18, "0.9", IF(K32>=16, "0.8", IF(K32>=14,"0.7", IF(K32>=12,"0.6")))))) -> 0.8
C33: 3 | D33: 0 | E33: 000-00 | F33: 4 | G33: 2010-10-02 | H33: 2014-10-01 | J33: 4 | K33: 17 | L33: =IF(P33>=Q33, P33,Q33) -> 0.9 | M33: 0.225 | P33: =IF(J33<1, " ", IF(J33>=5,"1", IF(J33>=4, "0.9", IF(J33>=3, "0.8", IF(J33>=2,"0.7", IF(J33>=1,"0.6")))))) -> 0.9 | Q33: =IF(K33<12, " ", IF(K33>=20,"1", IF(K33>=18, "0.9", IF(K33>=16, "0.8", IF(K33>=14,"0.7", IF(K33>=12,"0.6")))))) -> 0.8
C34: 소계 | M34: =SUM(M31:M33) -> 1.305
B35: 특허 | C35: 1 | D35: 0 | E35: 000-000 | F35: 2 | G35: 1995-01-02 | H35: - | I35: =($N$11-G35+1)/365 -> 18.76986301 | J35: - | K35: - | L35: =IF(I35<5,100%,IF(I35<10,80%,IF(I35<20,60%,IF(I35>=20,0)))) -> 0.6 | M35: =IF(L35=0,0,L35/F35) -> 0.3
C36: 2 | D36: 0 | E36: 000-000 | F36: 1 | G36: 2011-11-12 | H36: - | I36: =($N$11-G36+1)/365 -> 1.898630137 | J36: - | K36: - | L36: =IF(I36<5,100%,IF(I36<10,80%,IF(I36<20,60%,IF(I36>=20,0)))) -> 1 | M36: =IF(L36=0,0,L36/F36) -> 1
C37: 3 | D37: 0 | E37: 000-000 | F37: 2 | G37: 2010-09-10 | H37: - | I37: =($N$11-G37+1)/365 -> 3.071232877 | J37: - | K37: - | L37: =IF(I37<5,100%,IF(I37<10,80%,IF(I37<20,60%,IF(I37>=20,0)))) -> 1 | M37: =IF(L37=0,0,L37/F37) -> 0.5
C38: 소계 | M38: =SUM(M35:M37) -> 1.8
B39: 실용 신안 | C39: 1 | D39: 0 | E39: 000-000 | F39: 2 | G39: 2008-01-02 | H39: - | I39: =($N$11-G39+1)/365 -> 5.761643836 | J39: - | K39: - | L39: =IF(I39<5,100%,IF(I39<10,80%,IF(I39>=10,0))) -> 0.8 | M39: =IF(L39=0,0,L39/F39) -> 0.4
C40: 2 | D40: 0 | E40: 000-000 | F40: 1 | G40: 2011-11-12 | I40: =($N$11-G40+1)/365 -> 1.898630137 | L40: =IF(I40<5,100%,IF(I40<10,80%,IF(I40>=10,0))) -> 1 | M40: =IF(L40=0,0,L40/F40) -> 1
C41: 3 | D41: 0 | E41: 000-000 | F41: 2 | G41: 2010-09-10 | I41: =($N$11-G41+1)/365 -> 3.071232877 | L41: 1 | M41: 0.5
C42: 소계 | M42: =SUM(M39:M41) -> 1.9
B43: 합계 | M43: =ROUND(M34+M38+M42,2) -> 5.01 | N43: =IF(M43<=3,M43,IF(M43>3,"3")) -> 3
B45: ○ | C45: =B6 -> C사
B46: 구분 | C46: 연번 | D46: 명칭 | E46: 지정번호 | F46: 출원자 수 | G46: 보호기간 또는 출원일 | I46: 경과기간 | J46: 사용실적 | L46: 가중치 | M46: 점수 | N46: 비고 | P46: 가중치
G47: (시작) | H47: (종료) | I47: (년) | J47: (건) | K47: (금액,억원) | P47: 건수 | Q47: 금액
B48: 건설 신기술 | C48: 1 | D48: 0 | E48: 000-00 | F48: 2 | G48: 2010-10-02 | H48: 2014-10-01 | J48: 4 | K48: 17 | L48: =IF(P48>=Q48, P48,Q48) -> 0.9 | M48: =IF(L48=0,0,L48/F48) -> 0.45 | P48: =IF(J48<1, " ", IF(J48>=5,"1", IF(J48>=4, "0.9", IF(J48>=3, "0.8", IF(J48>=2,"0.7", IF(J48>=1,"0.6")))))) -> 0.9 | Q48: =IF(K48<12, " ", IF(K48>=20,"1", IF(K48>=18, "0.9", IF(K48>=16, "0.8", IF(K48>=14,"0.7", IF(K48>=12,"0.6")))))) -> 0.8
C49: 2 | D49: 0 | E49: 000-00 | F49: 5 | G49: 2010-10-02 | H49: 2014-10-01 | J49: 4 | K49: 17 | L49: =IF(P49>=Q49, P49,Q49) -> 0.9 | M49: =IF(L49=0,0,L49/F49) -> 0.18 | P49: =IF(J49<1, " ", IF(J49>=5,"1", IF(J49>=4, "0.9", IF(J49>=3, "0.8", IF(J49>=2,"0.7", IF(J49>=1,"0.6")))))) -> 0.9 | Q49: =IF(K49<12, " ", IF(K49>=20,"1", IF(K49>=18, "0.9", IF(K49>=16, "0.8", IF(K49>=14,"0.7", IF(K49>=12,"0.6")))))) -> 0.8
C50: 3 | D50: 0 | E50: 000-00 | F50: 1 | G50: 2010-10-02 | H50: 2014-10-01 | J50: 4 | K50: 17 | L50: =IF(P50>=Q50, P50,Q50) -> 0.9 | M50: 0.9 | P50: =IF(J50<1, " ", IF(J50>=5,"1", IF(J50>=4, "0.9", IF(J50>=3, "0.8", IF(J50>=2,"0.7", IF(J50>=1,"0.6")))))) -> 0.9 | Q50: =IF(K50<12, " ", IF(K50>=20,"1", IF(K50>=18, "0.9", IF(K50>=16, "0.8", IF(K50>=14,"0.7", IF(K50>=12,"0.6")))))) -> 0.8
C51: 소계 | M51: =SUM(M48:M50) -> 1.53
B52: 특허 | C52: 1 | D52: 0 | E52: 000-000 | F52: 2 | G52: 1995-01-02 | H52: - | I52: =($N$11-G52+1)/365 -> 18.76986301 | J52: - | K52: - | L52: =IF(I52<5,100%,IF(I52<10,80%,IF(I52<20,60%,IF(I52>=20,0)))) -> 0.6 | M52: =IF(L52=0,0,L52/F52) -> 0.3
C53: 2 | D53: 0 | E53: 000-000 | F53: 1 | G53: 2011-11-12 | H53: - | I53: =($N$11-G53+1)/365 -> 1.898630137 | J53: - | K53: - | L53: =IF(I53<5,100%,IF(I53<10,80%,IF(I53<20,60%,IF(I53>=20,0)))) -> 1 | M53: =IF(L53=0,0,L53/F53) -> 1
C54: 3 | D54: 0 | E54: 000-000 | F54: 2 | G54: 2010-09-10 | H54: - | I54: =($N$11-G54+1)/365 -> 3.071232877 | J54: - | K54: - | L54: =IF(I54<5,100%,IF(I54<10,80%,IF(I54<20,60%,IF(I54>=20,0)))) -> 1 | M54: =IF(L54=0,0,L54/F54) -> 0.5
C55: 소계 | M55: =SUM(M52:M54) -> 1.8
B56: 실용 신안 | C56: 1 | D56: 0 | E56: 000-000 | F56: 2 | G56: 2008-01-02 | H56: - | I56: =($N$11-G56+1)/365 -> 5.761643836 | J56: - | K56: - | L56: =IF(I56<5,100%,IF(I56<10,80%,IF(I56>=10,0))) -> 0.8 | M56: =IF(L56=0,0,L56/F56) -> 0.4
C57: 2 | D57: 0 | E57: 000-000 | F57: 1 | G57: 2011-11-12 | I57: =($N$11-G57+1)/365 -> 1.898630137 | L57: =IF(I57<5,100%,IF(I57<10,80%,IF(I57>=10,0))) -> 1 | M57: =IF(L57=0,0,L57/F57) -> 1
C58: 3 | D58: 0 | E58: 000-000 | F58: 2 | G58: 2010-09-10 | I58: =($N$11-G58+1)/365 -> 3.071232877 | L58: 1 | M58: 0.5
C59: 소계 | M59: =SUM(M56:M58) -> 1.9
B60: 합계 | M60: =ROUND(M51+M55+M59,2) -> 5.23 | N60: =IF(M60<=3,M60,IF(M60>3,"3")) -> 3
B62: ○ | C62: =B7 -> D사
B63: 구분 | C63: 연번 | D63: 명칭 | E63: 지정번호 | F63: 출원자 수 | G63: 보호기간 또는 출원일 | I63: 경과기간 | J63: 사용실적 | L63: 가중치 | M63: 점수 | N63: 비고 | P63: 가중치
G64: (시작) | H64: (종료) | I64: (년) | J64: (건) | K64: (금액,억원) | P64: 건수 | Q64: 금액
B65: 건설 신기술 | C65: 1 | D65: 0 | E65: 000-00 | F65: 1 | G65: 2010-10-02 | H65: 2014-10-01 | J65: 4 | K65: 17 | L65: =IF(P65>=Q65, P65,Q65) -> 0.9 | M65: =IF(L65=0,0,L65/F65) -> 0.9 | P65: =IF(J65<1, " ", IF(J65>=5,"1", IF(J65>=4, "0.9", IF(J65>=3, "0.8", IF(J65>=2,"0.7", IF(J65>=1,"0.6")))))) -> 0.9 | Q65: =IF(K65<12, " ", IF(K65>=20,"1", IF(K65>=18, "0.9", IF(K65>=16, "0.8", IF(K65>=14,"0.7", IF(K65>=12,"0.6")))))) -> 0.8
C66: 2 | D66: 0 | E66: 000-00 | F66: 2 | G66: 2010-10-02 | H66: 2014-10-01 | J66: 4 | K66: 17 | L66: =IF(P66>=Q66, P66,Q66) -> 0.9 | M66: =IF(L66=0,0,L66/F66) -> 0.45 | P66: =IF(J66<1, " ", IF(J66>=5,"1", IF(J66>=4, "0.9", IF(J66>=3, "0.8", IF(J66>=2,"0.7", IF(J66>=1,"0.6")))))) -> 0.9 | Q66: =IF(K66<12, " ", IF(K66>=20,"1", IF(K66>=18, "0.9", IF(K66>=16, "0.8", IF(K66>=14,"0.7", IF(K66>=12,"0.6")))))) -> 0.8
C67: 3 | D67: 0 | E67: 000-00 | F67: 7 | G67: 2010-10-02 | H67: 2014-10-01 | J67: 4 | K67: 17 | L67: =IF(P67>=Q67, P67,Q67) -> 0.9 | M67: 0.1285714286 | P67: =IF(J67<1, " ", IF(J67>=5,"1", IF(J67>=4, "0.9", IF(J67>=3, "0.8", IF(J67>=2,"0.7", IF(J67>=1,"0.6")))))) -> 0.9 | Q67: =IF(K67<12, " ", IF(K67>=20,"1", IF(K67>=18, "0.9", IF(K67>=16, "0.8", IF(K67>=14,"0.7", IF(K67>=12,"0.6")))))) -> 0.8
C68: 소계 | M68: =SUM(M65:M67) -> 1.478571429
B69: 특허 | C69: 1 | D69: 0 | E69: 000-000 | F69: 2 | G69: 1995-01-02 | H69: - | I69: =($N$11-G69+1)/365 -> 18.76986301 | J69: - | K69: - | L69: =IF(I69<5,100%,IF(I69<10,80%,IF(I69<20,60%,IF(I69>=20,0)))) -> 0.6 | M69: =IF(L69=0,0,L69/F69) -> 0.3
C70: 2 | D70: 0 | E70: 000-000 | F70: 1 | G70: 2011-11-12 | H70: - | I70: =($N$11-G70+1)/365 -> 1.898630137 | J70: - | K70: - | L70: =IF(I70<5,100%,IF(I70<10,80%,IF(I70<20,60%,IF(I70>=20,0)))) -> 1 | M70: =IF(L70=0,0,L70/F70) -> 1
C71: 3 | D71: 0 | E71: 000-000 | F71: 2 | G71: 2010-09-10 | H71: - | I71: =($N$11-G71+1)/365 -> 3.071232877 | J71: - | K71: - | L71: =IF(I71<5,100%,IF(I71<10,80%,IF(I71<20,60%,IF(I71>=20,0)))) -> 1 | M71: =IF(L71=0,0,L71/F71) -> 0.5
C72: 소계 | M72: =SUM(M69:M71) -> 1.8
B73: 실용 신안 | C73: 1 | D73: 0 | E73: 000-000 | F73: 2 | G73: 2008-01-02 | H73: - | I73: =($N$11-G73+1)/365 -> 5.761643836 | J73: - | K73: - | L73: =IF(I73<5,100%,IF(I73<10,80%,IF(I73>=10,0))) -> 0.8 | M73: =IF(L73=0,0,L73/F73) -> 0.4
C74: 2 | D74: 0 | E74: 000-000 | F74: 1 | G74: 2011-11-12 | I74: =($N$11-G74+1)/365 -> 1.898630137 | L74: =IF(I74<5,100%,IF(I74<10,80%,IF(I74>=10,0))) -> 1 | M74: =IF(L74=0,0,L74/F74) -> 1
C75: 3 | D75: 0 | E75: 000-000 | F75: 2 | G75: 2010-09-10 | I75: =($N$11-G75+1)/365 -> 3.071232877 | L75: 1 | M75: 0.5
C76: 소계 | M76: =SUM(M73:M75) -> 1.9
B77: 합계 | M77: =ROUND(M68+M72+M76,2) -> 5.18 | N77: =IF(M77<=3,M77,IF(M77>3,"3")) -> 3
B79: ○ | C79: =B8 -> E사
B80: 구분 | C80: 연번 | D80: 명칭 | E80: 지정번호 | F80: 출원자 수 | G80: 보호기간 또는 출원일 | I80: 경과기간 | J80: 사용실적 | L80: 가중치 | M80: 점수 | N80: 비고 | P80: 가중치
G81: (시작) | H81: (종료) | I81: (년) | J81: (건) | K81: (금액,억원) | P81: 건수 | Q81: 금액
B82: 건설 신기술 | C82: 1 | D82: 0 | E82: 000-00 | F82: 1 | G82: 2010-10-02 | H82: 2014-10-01 | J82: 4 | K82: 17 | L82: =IF(P82>=Q82, P82,Q82) -> 0.9 | M82: =IF(L82=0,0,L82/F82) -> 0.9 | P82: =IF(J82<1, " ", IF(J82>=5,"1", IF(J82>=4, "0.9", IF(J82>=3, "0.8", IF(J82>=2,"0.7", IF(J82>=1,"0.6")))))) -> 0.9 | Q82: =IF(K82<12, " ", IF(K82>=20,"1", IF(K82>=18, "0.9", IF(K82>=16, "0.8", IF(K82>=14,"0.7", IF(K82>=12,"0.6")))))) -> 0.8
C83: 2 | D83: 0 | E83: 000-00 | F83: 3 | G83: 2010-10-02 | H83: 2014-10-01 | J83: 4 | K83: 17 | L83: =IF(P83>=Q83, P83,Q83) -> 0.9 | M83: =IF(L83=0,0,L83/F83) -> 0.3 | P83: =IF(J83<1, " ", IF(J83>=5,"1", IF(J83>=4, "0.9", IF(J83>=3, "0.8", IF(J83>=2,"0.7", IF(J83>=1,"0.6")))))) -> 0.9 | Q83: =IF(K83<12, " ", IF(K83>=20,"1", IF(K83>=18, "0.9", IF(K83>=16, "0.8", IF(K83>=14,"0.7", IF(K83>=12,"0.6")))))) -> 0.8
C84: 3 | D84: 0 | E84: 000-00 | F84: 2 | G84: 2010-10-02 | H84: 2014-10-01 | J84: 4 | K84: 17 | L84: =IF(P84>=Q84, P84,Q84) -> 0.9 | M84: 0.45 | P84: =IF(J84<1, " ", IF(J84>=5,"1", IF(J84>=4, "0.9", IF(J84>=3, "0.8", IF(J84>=2,"0.7", IF(J84>=1,"0.6")))))) -> 0.9 | Q84: =IF(K84<12, " ", IF(K84>=20,"1", IF(K84>=18, "0.9", IF(K84>=16, "0.8", IF(K84>=14,"0.7", IF(K84>=12,"0.6")))))) -> 0.8
C85: 소계 | M85: =SUM(M82:M84) -> 1.65
B86: 특허 | C86: 1 | D86: 0 | E86: 000-000 | F86: 2 | G86: 1995-01-02 | H86: - | I86: =($N$11-G86+1)/365 -> 18.76986301 | J86: - | K86: - | L86: =IF(I86<5,100%,IF(I86<10,80%,IF(I86<20,60%,IF(I86>=20,0)))) -> 0.6 | M86: =IF(L86=0,0,L86/F86) -> 0.3
C87: 2 | D87: 0 | E87: 000-00 | F87: 3 | G87: 2010-10-02 | H87: - | I87: =($N$11-G87+1)/365 -> 3.010958904 | J87: - | K87: - | L87: =IF(I87<5,100%,IF(I87<10,80%,IF(I87<20,60%,IF(I87>=20,0)))) -> 1 | M87: =IF(L87=0,0,L87/F87) -> 0.3333333333
C88: 3 | D88: 0 | E88: 000-00 | F88: 2 | G88: 2010-10-02 | H88: - | I88: =($N$11-G88+1)/365 -> 3.010958904 | J88: - | K88: - | L88: =IF(I88<5,100%,IF(I88<10,80%,IF(I88<20,60%,IF(I88>=20,0)))) -> 1 | M88: =IF(L88=0,0,L88/F88) -> 0.5
C89: 소계 | M89: =SUM(M86:M88) -> 1.133333333
B90: 실용 신안 | C90: 1 | D90: 0 | E90: 000-000 | F90: 2 | G90: 2008-01-02 | H90: - | I90: =($N$11-G90+1)/365 -> 5.761643836 | J90: - | K90: - | L90: =IF(I90<5,100%,IF(I90<10,80%,IF(I90>=10,0))) -> 0.8 | M90: =IF(L90=0,0,L90/F90) -> 0.4
C91: 2 | D91: 0 | E91: 000-00 | F91: 3 | G91: 2010-10-02 | I91: =($N$11-G91+1)/365 -> 3.010958904 | L91: =IF(I91<5,100%,IF(I91<10,80%,IF(I91>=10,0))) -> 1 | M91: =IF(L91=0,0,L91/F91) -> 0.3333333333
C92: 3 | D92: 0 | E92: 000-00 | F92: 2 | G92: 2010-10-02 | I92: =($N$11-G92+1)/365 -> 3.010958904 | L92: 1 | M92: 0.5
C93: 소계 | M93: =SUM(M90:M92) -> 1.233333333
B94: 합계 | M94: =ROUND(M85+M89+M93,2) -> 4.02 | N94: =IF(M94<=3,M94,IF(M94>3,"3")) -> 3
B97: 나. 투자실적 | M97: (단위: | N97: 백만원)
B98: 업체명 | D98: 참여지분율 | F98: 1년차 | H98: 2년차 | J98: 3년차 | L98: (A1+A2+A3) /(B1+B2+B3) | N98: 적용점수
F99: A1 | G99: B1 | H99: A2 | I99: B2 | J99: A3 | K99: B3
B100: =B4 -> A사 | D100: =E4 -> 0.4 | F100: 2 | G100: 200 | H100: 3 | I100: 100 | J100: 7 | K100: 300 | L100: =(F100+H100+J100)/(G100+I100+K100) -> 0.02 | N100: =D100*L100 -> 0.008
B101: =B5 -> B사 | D101: =E5 -> 0.3 | F101: 3 | G101: 300 | H101: 4 | I101: 200 | J101: 8 | K101: 400 | L101: =(F101+H101+J101)/(G101+I101+K101) -> 0.01666666667 | N101: =D101*L101 -> 0.005
B102: C사 | D102: 0.1 | F102: 4 | G102: 400 | H102: 5 | I102: 300 | J102: 9 | K102: 500 | L102: =(F102+H102+J102)/(G102+I102+K102) -> 0.015 | N102: 0.0015
B103: D사 | D103: 0.1 | F103: 5 | G103: 500 | H103: 6 | I103: 400 | J103: 10 | K103: 100 | L103: =(F103+H103+J103)/(G103+I103+K103) -> 0.021 | N103: 0.0021
B104: E사 | D104: 0.1 | F104: 6 | G104: 600 | H104: 7 | I104: 500 | J104: 11 | K104: 200 | L104: =(F104+H104+J104)/(G104+I104+K104) -> 0.01846153846 | N104: 0.001846153846
B105: 합계 | N105: =ROUND(SUM(N100:N104),4) -> 0.0184
B106: 점수 | N106: =IF(N105>=3%,"7",IF(N105>=2.5%,"6.8", IF(N105>=2%,"6.6", IF(N105>=1.5%,"6.4", IF(N105>=1%,"6.2","6"))))) -> 6.4

Sheet 마.업무중첩도
B1: 업무중첩도
B2: (현재수행중인 용역 현황)
B4: 구분 | C4: 성명 | D4: 현장배치현황 | F4: 점수 | G4: 비고
D5: 현장명 | E5: 용역기간
B6: ='참여감리원 명단'!B5 -> 책임 감리원 | C6: ='참여감리원 명단'!D5 -> 홍길일 | D6: 없음 | E6: - | F6: 2
B7: ='참여감리원 명단'!B6 -> 보조 감리원 | C7: ='참여감리원 명단'!D6 -> 홍길이 | D7: 없음 | E7: - | F7: 1
B8: 계 | F8: =SUM(F6:F7) -> 3
B9: ='참여감리원 명단'!B7 -> 기술 지원 감리원 | C9: ='참여감리원 명단'!D7 -> 홍길삼 | F9: 2 | G9: 10개이상 중복배치시 : 0점
C13: ='참여감리원 명단'!D8 -> 홍길사 | F13: 2
C17: ='참여감리원 명단'!D9 -> 홍길오 | F17: 2
C21: ='참여감리원 명단'!D10 -> 홍길육
F24: 2
B25: 계 | F25: =(F9+F13+F17+F24)/4 -> 2

Sheet 바.교체빈도
B1: 최근 1년간 참여감리원의 교체빈도
B3: ○ 감리전문회사
B4: 업체명 | C4: 회사소속 감리원수 | F4: 교체건수 | J4: 교체빈도율 (%)
C5: 상주 | D5: 기술지원 | E5: 계 | F5: 상주감리원 | G5: 기술지원감리원
H6: 환산(5건→1건) | I6: 계
B7: =참여업체현황!B5 -> A사 | C7: 264 | D7: 111 | E7: =C7+D7/5 -> 286.2 | F7: 1 | G7: 0 | H7: =G7/5 -> 0 | I7: =F7+H7 -> 1 | J7: =I7/E7 -> 0.003494060098
B8: =참여업체현황!B6 -> B사 | C8: 110 | D8: 42 | E8: =C8+D8/5 -> 118.4 | F8: 2 | G8: 1 | H8: =G8/5 -> 0.2 | I8: =F8+H8 -> 2.2 | J8: =I8/E8 -> 0.01858108108
B9: =참여업체현황!B7 -> C사 | C9: 210 | D9: 90 | E9: 228 | F9: 1 | G9: 4 | H9: 0.8 | I9: 1.8 | J9: 0.007894736842
B10: =참여업체현황!B8 -> D사 | C10: 250 | D10: 115 | E10: 273 | F10: 2 | G10: 5 | H10: 1 | I10: 3 | J10: 0.01098901099
B11: =참여업체현황!B9 -> E사 | C11: 240 | D11: 98 | E11: 259.6 | F11: 3 | G11: 6 | H11: 1.2 | I11: 4.2 | J11: 0.01617873652
B12: 계 | J12: =ROUND(SUM(J7:J11),4) -> 0.0571
B13: 점수 | J13: =IF(J12<5%,"5", IF(J12<10%, "4.5", IF(J12<15%, "4", IF(J12<20%, "3", "0")))) -> 4.5
B16: ○ 참여감리원
B17: 등급 | C17: 성명 | D17: 용역명 | E17: 발주기관 | F17: 참여구분 (상주,기술지원) | G17: 교체건수 | H17: 감점 | I17: 비고
B18: ='참여감리원 명단'!B5 -> 책임 감리원 | C18: ='참여감리원 명단'!D5 -> 홍길일 | D18: 00감리용역 | E18: 00시 | F18: 상주 | G18: 1 | H18: =G18*0.25 -> 0.25
B19: ='참여감리원 명단'!B6 -> 보조 감리원 | C19: ='참여감리원 명단'!D6 -> 홍길이 | D19: 00감리용역 | E19: 00청 | F19: 상주 | G19: 0 | H19: =G19*0.25 -> 0
B20: ='참여감리원 명단'!B7 -> 기술 지원 감리원 | C20: ='참여감리원 명단'!D7 -> 홍길삼 | D20: 00감리용역 | E20: 00공사 | F20: 상주 | G20: 0 | H20: =G20*0.1 -> 0
C21: ='참여감리원 명단'!D8 -> 홍길사 | D21: 00감리용역 | E21: 00시 | F21: 비상주 | G21: 0 | H21: =G21*0.1 -> 0
C22: ='참여감리원 명단'!D9 -> 홍길오 | D22: 00감리용역 | E22: 00청 | F22: 비상주 | G22: 1 | H22: 0.1
C23: ='참여감리원 명단'!D10 -> 홍길육 | D23: 00감리용역 | E23: 00공사 | F23: 상주 | G23: 2 | H23: 0.2
B24: 합계 | H24: =SUM(H18:H23) -> 0.55
B25: 점수 | H25: =5-H24 -> 4.45
